[Event "Polish Youth G16 Championship 2023"]
[Site "Jastrzebia Gora"]
[Date "2023.03.16"]
[Round "6.3"]
[White "Siekanska, Maria"]
[Black "Kawa, Anna"]
[Result "1-0"]
[ECO "E65"]
[WhiteElo "1996"]
[BlackElo "1743"]
[Annotator "TA"]
[PlyCount "87"]
[EventDate "2023.03.11"]
[EventType "swiss"]
[EventCountry "POL"]
[SourceTitle "playchess.com"]
[Source "ChessBase"]
[SourceQuality "1"]
[TimeControl "40/5400+30:1800+30"]

{[%evp 15,87,10,16,-8,22,-4,0,0,-8,-28,-7,-20,21,18,39,45,41,30,37,46,36,43,42,5,101,102,111,84,103,109,98,88,88,44,42,46,104,103,118,118,127,127,142,119,178,178,174,174,178,175,245,210,213,183,2189,2131,1865,1755,3291,3131,2691,5114,29980,29981,29981,29982,29982,29983,29983,29984,29982,29983,29986,29987]} 1. d4 {[%emt 0:00:02]} Nf6 {[%emt 0:00:34]} 2. c4 {[%emt 0:00:07]} g6 {[%emt 0:00:22]} 3. g3 {[%emt 0:00:06]} Bg7 {[%emt 0:00:28]} 4. Bg2 {[%emt 0:00:14]} d6 {[%emt 0:00:45]} 5. Nf3 {[%emt 0:00:10]} O-O {[%emt 0:00:39]} 6. O-O {[%emt 0:00:07]} c5 {[%emt 0:02:55]} 7. Nc3 {[%emt 0:03:42]} Nc6 {[%emt 0:03:03][%cal Bb8c6,Bc6d4,Bd4e2][%mdl 32]} 8. dxc5 {[%emt 0:03:02]} dxc5 {[%emt 0:01:42]} 9. Qa4 {[%emt 0:01:49] E65: King's Indian: Fianchetto: 6...c5 7 0-0 without d5 by White.} Qa5 {[%emt 0:04:14] [#]} 10. Nd2 $146 {[%emt 0:07:23]} ({Predecessor:} 10. Be3 Nd7 11. Qb3 Nd4 12. Bxd4 cxd4 13. Nd5 Re8 14. Qd1 e6 15. b4 Qd8 16. Nf4 a5 17. a3 d3 18. Rb1 axb4 19. axb4 dxe2 20. Qxe2 {0-1 Preotu,R (2462)-Kovalenko,I (2667) Titled Tuesday intern op 2nd Febr blitz 2016 (2)}) 10... Qxa4 {[%emt 0:10:26]} 11. Nxa4 {[%emt 0:00:11] The position is equal.} Nd4 {[%emt 0:00:19]} 12. e3 {[%emt 0:10:20]} (12. Nc3 $5) 12... Ne2+ {[%emt 0:13:30]} 13. Kh1 {[%emt 0:00:02]} Nxc1 {[%emt 0:01:08]} 14. Raxc1 {[%emt 0:00:07][%cal Od2b3]} Nd7 {[%emt 0:01:02]} 15. Nb3 {[%emt 0:00:29]} Rb8 {[%emt 0:01:54]} 16. Nbxc5 {[%emt 0:03:19]} Nxc5 {[%emt 0:05:02]} 17. Nxc5 {[%emt 0:03:03][%cal Ba4c5,Bc5d3,Bd3f4,Bf4e2][%mdl 32]} b6 {[%emt 0:00:50]} 18. Nd3 {[%emt 0:02:16]} Rd8 {[%emt 0:01:11]} 19. Rcd1 {[%emt 0:06:39]} Ba6 {[%emt 0:02:08]} (19... Bg4 $11 {keeps the balance.}) 20. b3 $16 {[%emt 0:00:58]} Bc3 {[%emt 0:07:57] Prevents Nb4} 21. Nf4 {[%emt 0:05:07]} e6 {[%emt 0:01:31] Dodges Nd5} 22. Ne2 {[%emt 0:00:14]} Bf6 {[%emt 0:00:30]} 23. a4 {[%emt 0:01:30]} Kf8 {[%emt 0:01:41]} 24. e4 {[%emt 0:03:58][%cal Be3e4,Be4e5][%mdl 32]} Bb7 {[%emt 0:02:17]} 25. f4 {[%emt 0:04:10]} Bb2 {[%emt 0:04:26] White leaves nothing to chance now.} ({Black should try} 25... e5 $14) 26. e5 {[%emt 0:04:37] [#] Strongly threatening Rxd8+.} Bxg2+ {[%emt 0:02:08]} 27. Kxg2 {[%emt 0:00:07]} Ke7 {[%emt 0:00:38]} 28. Kf3 {[%emt 0:00:39]} a6 {[%emt 0:04:38]} 29. Ke3 {[%emt 0:05:48]} a5 {[%emt 0:12:23]} (29... Ba3 $16 {was called for.} 30. Ke4 Rxd1 31. Rxd1 Rd8 32. Rxd8 Kxd8) 30. Nd4 $18 {[%emt 0:01:57]} Bxd4+ {[%emt 0:00:26]} 31. Rxd4 {[%emt 0:00:08]} Rxd4 {[%emt 0:00:42]} 32. Kxd4 {[%emt 0:00:02][%mdl 4096] Endgame KR-KR} Rd8+ {[%emt 0:00:14]} (32... Kd7 $142 33. Ke4 Kc6) 33. Kc3 {[%emt 0:00:15]} Rd7 {[%emt 0:03:29]} 34. Rf2 {[%emt 0:00:45] [#] Rd2 is the strong threat.} Kd8 $2 {[%emt 0:05:24]} (34... Rd1 35. Rd2 Rc1+ 36. Kb2 Rh1) 35. Rd2 {[%emt 0:01:23]} Rxd2 {[%emt 0:00:10]} 36. Kxd2 {[%emt 0:00:05] aiming for Kc3. KP-KP} Kc7 {[%emt 0:00:04]} 37. Kc3 {[%emt 0:00:07]} Kc6 {[%emt 0:00:02]} 38. b4 {[%emt 0:01:07]} h6 {[%emt 0:01:46]} 39. bxa5 {[%emt 0:00:18] White mates.} bxa5 {[%emt 0:00:04]} 40. Kd4 {[%emt 0:00:00]} Kb6 {[%emt 0:00:00]} 41. c5+ {[%emt 0:00:14]} Kc7 {[%emt 0:01:11]} 42. Kc4 {[%emt 0:00:05]} Kc6 {[%emt 0:00:03]} 43. h3 {[%emt 0:00:12][%cal Bh2h3,Bh3h4][%mdl 32]} h5 {[%emt 0:00:10]} 44. h4 {[%emt 0:00:14] Weighted Error Value: White=0.10 (very precise) /Black=0.41} 1-0

[Event "Polish Youth G16 Championship 2023"]
[Site "Jastrzebia Gora"]
[Date "2023.03.16"]
[Round "6.4"]
[White "Szopa, Emilia"]
[Black "Smietanska, Wiktoria"]
[Result "1/2-1/2"]
[ECO "B34"]
[WhiteElo "1709"]
[BlackElo "1954"]
[Annotator "TA"]
[PlyCount "174"]
[EventDate "2023.03.11"]
[EventType "swiss"]
[EventCountry "POL"]
[SourceTitle "playchess.com"]
[Source "ChessBase"]
[SourceQuality "1"]
[TimeControl "40/5400+30:1800+30"]

{[%evp 19,174,-79,7,0,16,-123,-56,-88,120,124,126,114,125,131,129,92,131,131,123,101,133,60,97,31,31,31,44,37,32,31,38,39,37,31,61,41,32,0,87,24,25,24,38,38,38,33,35,4,18,20,21,18,82,0,0,0,0,0,0,0,191,176,204,245,225,161,145,126,142,143,131,47,140,159,646,643,713,708,818,819,629,458,518,468,414,358,494,460,539,471,372,147,188,163,161,126,126,131,236,173,212,8,8,8,8,8,8,8,76,85,88,79,101,8,94,88,748,31,31,31,31,8,8,8,8,8,8,8,8,8,8,8,8,8,8,8,8,8,8,8,8,8,8,8,8,8,8,0,0,0,0,0,0,0,0,0,0]} 1. e4 {[%emt 0:00:49]} c5 {[%emt 0:00:02]} 2. Nc3 {[%emt 0:00:45]} Nc6 {[%emt 0:00:43]} 3. Nf3 {[%emt 0:01:11]} g6 {[%emt 0:01:44]} 4. d4 {[%emt 0:08:30]} cxd4 {[%emt 0:00:09]} 5. Nxd4 {[%emt 0:00:04]} Bg7 {[%emt 0:00:25]} 6. Be3 {[%emt 0:00:58]} Nf6 {[%emt 0:00:28]} 7. f3 {[%emt 0:01:34]} O-O {[%emt 0:03:42]} 8. Qd2 {[%emt 0:00:43]} d5 {[%emt 0:03:43]} 9. Nxc6 {[%emt 0:01:40]} bxc6 {[%emt 0:00:14]} 10. O-O-O {[%emt 0:02:10]} e6 {[%emt 0:09:02]} (10... Qc7 $1 $17) 11. h4 $11 {[%emt 0:05:57][%cal Bh2h4,Bh4h5,Bh5h6][%mdl 32] B34: Sicilian: Accelerated Dragon with 5 Nc3: sidelines.} Qa5 {[%emt 0:10:50] [#]} 12. e5 $146 {[%emt 0:04:40]} (12. Bh6 $11) ({Predecessor:} 12. Kb1 Rb8 13. b3 Rd8 14. Bd4 dxe4 15. Qf4 Nd7 16. Bxg7 Kxg7 17. Nxe4 e5 18. Qe3 f5 19. Ng5 Nf6 20. Bc4 f4 21. Qe2 {1-0 Cruz Beltran,A (1745)-Valera Padilla,F (1786) Pan American-ch School U17 2019 (8)}) 12... Nd7 {[%emt 0:01:04]} (12... Nh5 $1 $17 13. Qe1 Bxe5 14. Nxd5 Qxa2 15. Ne7+ Kh8) 13. Bh6 {[%emt 0:02:23] Black is slightly better.} d4 $2 {[%emt 0:08:53]} ({Of course not} 13... Nxe5 14. Bxg7 Kxg7 15. h5 $11) (13... Bxe5 $1 $17 {[%cal Oa8b8] and life is bright. Hoping for ...Rb8!} 14. h5 (14. Bxf8 Kxf8 15. h5 Rb8 $17) 14... Rb8) 14. Bxg7 $16 {[%emt 0:02:29]} Kxg7 {[%emt 0:04:25]} 15. Qxd4 {[%emt 0:01:34]} Qxe5 {[%emt 0:01:45]} 16. h5 {[%emt 0:02:09]} Qxd4 {[%emt 0:03:59]} 17. Rxd4 {[%emt 0:01:55]} Nf6 {[%emt 0:06:34]} 18. h6+ {[%emt 0:03:59] Black is weak on the dark squares} Kg8 {[%emt 0:00:07]} 19. Rd6 {[%emt 0:08:37] White has more active pieces. The black rooks are badly placed.} Bb7 {[%emt 0:00:38]} 20. Be2 {[%emt 0:01:02]} ({Better is} 20. Rh4 $16) 20... Rfd8 {[%emt 0:03:53]} 21. Rhd1 {[%emt 0:00:55]} (21. Rxd8+ $1 $16 Rxd8 22. Rh4) 21... Rxd6 $1 $14 {[%emt 0:01:44]} 22. Rxd6 {[%emt 0:00:10]} Kf8 $1 {[%emt 0:00:16]} 23. Na4 {[%emt 0:06:34]} Ke7 {[%emt 0:00:57]} 24. Rd4 {[%emt 0:00:45][%cal Bd6d4,Bd4b4,Bb4b3][%mdl 32]} Nd7 {[%emt 0:12:05] Against Nc5} 25. Rb4 {[%emt 0:02:57]} Rb8 {[%emt 0:00:42][%cal Ob7a6]} 26. Kd2 {[%emt 0:04:26]} c5 {[%emt 0:04:21]} 27. Rb3 {[%emt 0:01:59]} Kd6 {[%emt 0:01:46]} 28. Ke3 {[%emt 0:05:58]} e5 {[%emt 0:05:03]} (28... Bc6 $11 {remains equal.} 29. Rxb8 Nxb8) 29. Bc4 {[%emt 0:02:48]} (29. Nc3 $16) 29... f5 $1 $11 {[%emt 0:05:42]} 30. Rd3+ {[%emt 0:00:36]} Ke7 $1 {[%emt 0:02:16]} 31. Bb5 {[%emt 0:02:08] Against Bc6} Nf6 {[%emt 0:00:58]} 32. Rb3 $1 {[%emt 0:05:21][%cal Ob5a6] Ba6! would be deadly.} Rc8 {[%emt 0:03:08]} 33. Bc4 {[%emt 0:02:06]} Bd5 {[%emt 0:01:19]} 34. Bxd5 {[%emt 0:02:36]} Nxd5+ {[%emt 0:00:02][%mdl 4096] Endgame KRN-KRN} 35. Kf2 {[%emt 0:00:11]} Rc7 {[%emt 0:00:46]} (35... c4 $1 $11 36. Rb5 Ke6) 36. g4 {[%emt 0:03:12]} (36. c4 $16 Nf4 37. g3 Nh3+ 38. Ke2) 36... fxg4 {[%emt 0:00:51]} 37. fxg4 {[%emt 0:00:06]} Kd6 {[%emt 0:00:35]} 38. Rb8 {[%emt 0:00:38]} Rf7+ {[%emt 0:01:07]} 39. Kg3 {[%emt 0:00:24]} Nb4 $2 {[%emt 0:02:39]} (39... e4 $11) 40. Rd8+ {[%emt 0:00:00]} Kc7 {[%emt 0:00:00]} 41. Rg8 {[%emt 0:05:18]} Kd6 {[%emt 0:04:23]} 42. Rg7 {[%emt 0:06:41]} Ke7 {[%emt 0:02:04]} 43. Rxf7+ $1 {[%emt 0:04:05]} ({Don't do} 43. Nxc5 Nxc2 44. Rg8 Ne3 $16) 43... Kxf7 {[%emt 0:00:09]} 44. Nxc5 {[%emt 0:02:08]} Nxc2 $16 {[%emt 0:04:34] KN-KN} 45. Nd7 {[%emt 0:01:17]} (45. Kf3 $16) 45... g5 {[%emt 0:02:29]} (45... e4 $14) 46. Nxe5+ {[%emt 0:00:50]} Kf6 $2 {[%emt 0:00:30]} (46... Ke6 $16 47. Nc6 a6) 47. Nc6 $18 {[%emt 0:00:33]} a6 {[%emt 0:00:23]} 48. Kf3 {[%emt 0:00:14]} Ne1+ {[%emt 0:02:50]} 49. Ke4 {[%emt 0:00:45]} Kg6 {[%emt 0:00:17]} 50. Ne5+ {[%emt 0:03:19]} Kxh6 {[%emt 0:02:04]} 51. Kf5 {[%emt 0:00:08] White threatens Kf6 and mate.} Kg7 {[%emt 0:00:19]} 52. Kxg5 {[%emt 0:00:15]} Nc2 {[%emt 0:01:42]} 53. Nc6 {[%emt 0:01:26] Prevents Nd4} Ne3 {[%emt 0:00:28]} 54. b4 {[%emt 0:01:53]} h6+ {[%emt 0:01:19]} 55. Kf4 $2 {[%emt 0:00:29]} (55. Kh4 $18 {and White stays clearly on top.}) 55... Nd5+ $16 {[%emt 0:00:18]} 56. Ke5 {[%emt 0:00:48]} Nc3 {[%emt 0:01:04]} 57. a3 {[%emt 0:03:23] Threatens to win with Kf5.} Kg6 {[%emt 0:00:56] [#]} 58. Kf4 {[%emt 0:01:21] Black must now prevent Ne5+.} Nd5+ {[%emt 0:01:26]} (58... Nb1 $16 {is a better defense.} 59. a4 Nc3) 59. Kf3 {[%emt 0:01:18]} Nb6 {[%emt 0:06:10]} 60. Nb8 $2 {[%emt 0:01:54]} (60. Ne5+ $18 Kg5 61. Nd3) 60... Nc4 $11 {[%emt 0:00:36]} 61. a4 {[%emt 0:01:03]} a5 {[%emt 0:00:32]} 62. bxa5 {[%emt 0:03:03]} Nxa5 {[%emt 0:00:10]} 63. Kf4 {[%emt 0:00:05]} Kf6 {[%emt 0:00:57]} (63... h5 $1 $11) 64. Nd7+ $16 {[%emt 0:00:26]} Ke6 {[%emt 0:00:49]} 65. Nc5+ {[%emt 0:01:59]} Kd5 {[%emt 0:01:15]} 66. Nd3 {[%emt 0:00:22]} (66. Ne4 $16) 66... Ke6 {[%emt 0:00:35]} (66... Nc4 $11) 67. Ke4 {[%emt 0:00:26] Kd4 is the strong threat.} Kf6 $2 {[%emt 0:00:58][%mdl 8192] [#]} (67... Nb3 $16 68. Kf4 Na5) 68. Kd5 $2 {[%emt 0:01:26]} (68. Kd4 $1 $18 {[%cal Rd4c5] aiming for Kc5.} Kg5 69. Ne5) 68... Kg5 $1 $14 {[%emt 0:00:16]} 69. Ne5 {[%emt 0:00:20] And now Nc4 would win.} Kf4 {[%emt 0:00:54]} 70. Nf7 {[%emt 0:01:02]} (70. Nc4 $5 {[%cal Rc4a5]} Nb3 71. Ne5 $18) 70... Kxg4 {[%emt 0:00:08] The position is equal.} 71. Nxh6+ {[%emt 0:00:04]} Kg5 {[%emt 0:00:07]} 72. Nf7+ {[%emt 0:00:06]} Kf6 {[%emt 0:00:14]} 73. Nd8 {[%emt 0:00:19]} Nb3 $1 {[%emt 0:00:23]} 74. Kc4 {[%emt 0:00:19]} Ke7 {[%emt 0:01:00]} 75. Nb7 {[%emt 0:00:27]} Nd2+ {[%emt 0:00:09]} 76. Kb4 {[%emt 0:00:43]} Kd7 {[%emt 0:00:18]} 77. Nc5+ {[%emt 0:01:01]} Kc6 {[%emt 0:00:11]} 78. a5 {[%emt 0:00:08]} Nf3 {[%emt 0:00:33]} 79. Nb3 {[%emt 0:00:29]} Ne5 {[%emt 0:01:33]} 80. Nd4+ {[%emt 0:00:15]} Kd5 {[%emt 0:05:17] [#]} 81. Kb5 $1 {[%emt 0:00:13]} Nc4 {[%emt 0:00:52] [#]} (81... Kd6 82. Ne6) 82. a6 $1 {[%emt 0:00:15]} Nd6+ {[%emt 0:00:10]} 83. Kb6 {[%emt 0:00:12]} (83. Kb4 $5 Nc8 $8 84. Nf3 $11) 83... Kxd4 {[%emt 0:00:10]} 84. Kc6 {[%emt 0:00:50]} Nc8 {[%emt 0:00:11]} 85. Kb7 $1 {[%emt 0:00:47]} Nd6+ {[%emt 0:00:07]} 86. Kc6 {[%emt 0:00:11]} Nc8 {[%emt 0:00:05]} 87. Kb7 {[%emt 0:00:06]} Nd6+ {[%emt 0:00:03] Weighted Error Value: White=0.36/Black=0.43} 1/2-1/2

[Event "Polish Youth G16 Championship 2023"]
[Site "Jastrzebia Gora"]
[Date "2023.03.16"]
[Round "6.5"]
[White "Tokarz, Izabela"]
[Black "Zapalowska, Wiktoria"]
[Result "1-0"]
[ECO "D36"]
[WhiteElo "1725"]
[BlackElo "1639"]
[Annotator "NA RC COMBH"]
[PlyCount "107"]
[EventDate "2023.03.11"]
[EventType "swiss"]
[EventCountry "POL"]
[SourceTitle "playchess.com"]
[Source "ChessBase"]
[SourceQuality "1"]
[TimeControl "40/5400+30:1800+30"]

1. d4 d5 2. c4 e6 3. Nc3 Nf6 4. cxd5 exd5 5. Bg5 c6 6. Qc2 Bd6 7. e3 O-O 8. Bd3 h6 9. Bh4 Re8 10. Nge2 a5 11. h3 Na6 12. a3 Nc7 13. O-O Ne6 14. f3 Ng5 15. Bxg5 hxg5 16. e4 c5 17. dxc5 Bxc5+ 18. Kh1 dxe4 19. Nxe4 Nxe4 20. Bxe4 Qe7 21. Nc3 Be6 22. Rfe1 Rac8 23. Bd5 Qd7 24. Rad1 Bxd5 25. Rxe8+ Qxe8 26. Nxd5 Qe6 27. Qd2 Qe5 28. Re1 Qg3 29. Ne7+ Bxe7 30. Rxe7 b6 31. Rd7 Qf4 32. Qxf4 gxf4 33. Rd6 Rb8 34. Rd4 g5 35. h4 gxh4 36. Rxf4 Kg7 37. Rxh4 Rc8 38. Rh5 Rc6 39. Kh2 Rg6 40. g4 Kf6 41. Kg3 Ke7 42. Rf5 Rd6 43. Kf4 Rd4+ 44. Ke3 Rd6 45. Ke4 f6 46. Rd5 Re6+ 47. Kf5 Re3 48. f4 Rb3 49. Rd2 b5 50. Kg6 Rf3 51. Re2+ Kf8 52. f5 Rf4 53. Kxf6 Rxg4 54. Re5 1-0

[Event "Polish Youth G16 Championship 2023"]
[Site "Jastrzebia Gora"]
[Date "2023.03.16"]
[Round "6.6"]
[White "Giemza, Julia"]
[Black "Seemann, Pola"]
[Result "0-1"]
[ECO "B13"]
[WhiteElo "1536"]
[BlackElo "1714"]
[Annotator "NA RC COMBH"]
[PlyCount "100"]
[EventDate "2023.03.11"]
[EventType "swiss"]
[EventCountry "POL"]
[SourceTitle "playchess.com"]
[Source "ChessBase"]
[SourceQuality "1"]
[TimeControl "40/5400+30:1800+30"]

1. e4 {[%emt 0:00:01]} c6 {[%emt 0:00:04]} 2. d4 {[%emt 0:00:10]} d5 {[%emt 0:00:04]} 3. exd5 {[%emt 0:00:06]} cxd5 {[%emt 0:00:07]} 4. Bd3 {[%emt 0:00:05]} Nc6 {[%emt 0:00:04]} 5. c3 {[%emt 0:00:06]} Qc7 {[%emt 0:00:05]} 6. Nf3 {[%emt 0:01:08]} Bg4 {[%emt 0:00:16]} 7. O-O {[%emt 0:01:32]} Nf6 {[%emt 0:01:07]} 8. Re1 {[%emt 0:02:43]} e6 {[%emt 0:02:21]} 9. Nbd2 {[%emt 0:03:34]} Bd6 {[%emt 0:02:55]} 10. Nf1 {[%emt 0:03:31]} O-O {[%emt 0:09:09]} 11. h3 {[%emt 0:10:20]} Bh5 {[%emt 0:08:03]} 12. Bg5 {[%emt 0:08:19]} Be7 {[%emt 0:06:33]} 13. Ng3 {[%emt 0:04:16]} Bg6 {[%emt 0:05:09]} 14. Ne5 {[%emt 0:09:50]} Bxd3 {[%emt 0:05:47]} 15. Qxd3 {[%emt 0:00:18]} h6 {[%emt 0:02:12]} 16. Bd2 {[%emt 0:01:18]} Nxe5 {[%emt 0:02:03]} 17. Rxe5 {[%emt 0:00:49]} Bd6 {[%emt 0:02:03]} 18. Re3 {[%emt 0:04:18]} Rab8 {[%emt 0:06:46]} 19. a4 {[%emt 0:02:15]} a6 {[%emt 0:01:26]} 20. a5 {[%emt 0:05:03]} Rfe8 {[%emt 0:07:58]} 21. b3 {[%emt 0:07:10]} Rbc8 {[%emt 0:02:14]} 22. Be1 {[%emt 0:05:07]} Red8 {[%emt 0:05:44]} 23. Ne2 {[%emt 0:03:36]} Ne4 {[%emt 0:04:29]} 24. c4 {[%emt 0:03:42]} Be7 {[%emt 0:01:22]} 25. c5 {[%emt 0:07:51]} Bg5 {[%emt 0:08:03]} 26. Rf3 {[%emt 0:00:29]} Bf6 {[%emt 0:00:24]} 27. b4 {[%emt 0:01:22]} Ng5 {[%emt 0:03:44]} 28. Re3 {[%emt 0:01:03]} Rd7 {[%emt 0:04:41]} 29. b5 {[%emt 0:03:08]} axb5 {[%emt 0:01:29]} 30. Qxb5 {[%emt 0:00:13]} e5 {[%emt 0:00:35]} 31. dxe5 {[%emt 0:01:16]} d4 {[%emt 0:02:13]} 32. Rd3 {[%emt 0:00:18]} Be7 {[%emt 0:01:37]} 33. f4 {[%emt 0:04:08]} Ne6 {[%emt 0:01:08]} 34. Rc1 {[%emt 0:00:42]} Rd5 {[%emt 0:01:25]} 35. Bb4 {[%emt 0:01:04]} Qd8 {[%emt 0:01:45]} 36. Rc4 {[%emt 0:02:00]} Bxc5 {[%emt 0:01:04]} 37. Bxc5 {[%emt 0:00:50]} Rcxc5 {[%emt 0:00:11]} 38. Qb4 {[%emt 0:02:13]} Rb5 {[%emt 0:00:44]} 39. Qd2 {[%emt 0:00:38]} Qxa5 {[%emt 0:01:07]} 40. Nxd4 {[%emt 0:00:00]} Qa1+ {[%emt 0:00:00]} 41. Kh2 {[%emt 0:02:41]} Rb2 {[%emt 0:03:05]} 42. Qe3 {[%emt 0:01:38]} Nc5 {[%emt 0:04:23]} 43. Rdc3 {[%emt 0:02:25]} b6 {[%emt 0:02:03]} 44. e6 {[%emt 0:01:23]} fxe6 {[%emt 0:03:09]} 45. Nxe6 {[%emt 0:00:49]} Rdd2 {[%emt 0:00:15]} 46. Rc1 {[%emt 0:01:46]} Rxg2+ {[%emt 0:00:09]} 47. Kh1 {[%emt 0:00:03]} Rh2+ {[%emt 0:00:45]} 48. Kg1 {[%emt 0:00:05]} Rbg2+ {[%emt 0:00:18]} 49. Kf1 {[%emt 0:00:04]} Qb2 {[%emt 0:00:59]} 50. Nxc5 {[%emt 0:00:31]} Rh1+ {[%emt 0:00:08]} 0-1

[Event "Polish Youth G16 Championship 2023"]
[Site "Jastrzebia Gora"]
[Date "2023.03.16"]
[Round "6.7"]
[White "Kicinska, Magdalena"]
[Black "Salamon, Julia"]
[Result "1/2-1/2"]
[ECO "E16"]
[WhiteElo "1573"]
[BlackElo "1701"]
[Annotator "NA RC COMBH"]
[PlyCount "75"]
[EventDate "2023.03.11"]
[EventType "swiss"]
[EventCountry "POL"]
[SourceTitle "playchess.com"]
[Source "ChessBase"]
[SourceQuality "1"]
[TimeControl "40/5400+30:1800+30"]

1. d4 Nf6 2. Nf3 e6 3. c4 b6 4. g3 Bb7 5. Bg2 Bb4+ 6. Bd2 Qe7 7. a3 Bxd2+ 8. Nbxd2 c5 9. dxc5 bxc5 10. O-O O-O 11. b4 cxb4 12. axb4 Na6 13. b5 Nc5 14. Qc2 Rfc8 15. Rfc1 e5 16. Nb3 e4 17. Nxc5 Rxc5 18. Nd2 d5 19. Qb3 Qc7 20. Rc2 dxc4 21. Rxc4 Bd5 22. Rxc5 Qxc5 23. Qe3 Qxe3 24. fxe3 Rb8 25. Rxa7 Rxb5 26. Ra4 Rb2 27. Bxe4 Nxe4 28. Nxe4 Bxe4 29. Rxe4 f5 30. Re5 Rxe2 31. Rxf5 Rxe3 32. Kf2 Ra3 33. h4 g6 34. Rb5 h5 35. Rb7 Rc3 36. Ra7 Rb3 37. Rc7 Ra3 38. Rb7 1/2-1/2

[Event "Polish Youth G16 Championship 2023"]
[Site "Jastrzebia Gora"]
[Date "2023.03.16"]
[Round "6.8"]
[White "Nieckarz, Maja"]
[Black "Lazniewska, Zofia"]
[Result "0-1"]
[ECO "B35"]
[WhiteElo "1493"]
[BlackElo "1621"]
[Annotator "NA RC COMBH"]
[PlyCount "142"]
[EventDate "2023.03.11"]
[EventType "swiss"]
[EventCountry "POL"]
[SourceTitle "playchess.com"]
[Source "ChessBase"]
[SourceQuality "1"]
[TimeControl "40/5400+30:1800+30"]

1. e4 {[%emt 0:00:03]} c5 {[%emt 0:00:03]} 2. Nf3 {[%emt 0:00:07]} Nc6 {[%emt 0:00:06]} 3. d4 {[%emt 0:00:13]} cxd4 {[%emt 0:00:11]} 4. Nxd4 {[%emt 0:00:06]} g6 {[%emt 0:00:10]} 5. Nc3 {[%emt 0:00:06]} Bg7 {[%emt 0:00:12]} 6. Be3 {[%emt 0:00:07]} Nf6 {[%emt 0:00:06]} 7. Bc4 {[%emt 0:00:04]} O-O {[%emt 0:00:08]} 8. Bb3 {[%emt 0:00:03]} d5 {[%emt 0:02:11]} 9. Bxd5 {[%emt 0:18:50]} Ng4 {[%emt 0:04:24]} 10. O-O {[%emt 0:12:10]} Nxd4 {[%emt 0:09:17]} 11. Bxd4 {[%emt 0:01:30]} Bxd4 {[%emt 0:03:50]} 12. Qxd4 {[%emt 0:00:11]} e6 {[%emt 0:00:51]} 13. e5 {[%emt 0:01:00]} exd5 {[%emt 0:00:26]} 14. h3 {[%emt 0:00:49]} Nh6 {[%emt 0:04:51]} 15. Nxd5 {[%emt 0:00:50]} Nf5 16. Qc5 {[%emt 0:00:38]} Be6 {[%emt 0:02:44]} 17. Nf6+ {[%emt 0:00:16]} Kg7 {[%emt 0:03:16]} 18. Rad1 {[%emt 0:04:57]} Qc8 {[%emt 0:02:43]} 19. Qb4 {[%emt 0:01:48]} Qc6 {[%emt 0:07:01]} 20. Qf4 {[%emt 0:02:06]} Qc4 {[%emt 0:14:02]} 21. Qg5 {[%emt 0:04:55]} h6 {[%emt 0:09:07]} 22. Qd2 {[%emt 0:05:18]} Rac8 {[%emt 0:05:46]} 23. c3 {[%emt 0:05:43]} Rc5 {[%emt 0:05:07]} 24. Rfe1 {[%emt 0:03:00]} Qb5 {[%emt 0:04:33]} 25. Qf4 {[%emt 0:06:04]} Rc4 {[%emt 0:01:26]} 26. Re4 {[%emt 0:03:48]} Rxe4 {[%emt 0:03:25]} 27. Nxe4 {[%emt 0:01:05]} Qa4 {[%emt 0:07:23]} 28. Rd2 {[%emt 0:03:02]} Qxa2 {[%emt 0:04:44]} 29. g4 {[%emt 0:01:25]} Qb1+ {[%emt 0:01:02]} 30. Kh2 {[%emt 0:00:26]} g5 {[%emt 0:00:54]} 31. Nxg5 {[%emt 0:08:44]} hxg5 {[%emt 0:00:35]} 32. Qxg5+ {[%emt 0:00:09]} Kh7 {[%emt 0:00:10]} 33. gxf5 Qxf5 {[%emt 0:00:17]} 34. Qh4+ {[%emt 0:00:55]} Kg7 {[%emt 0:01:12]} 35. f4 f6 36. Rg2+ {[%emt 0:07:14]} Kf7 {[%emt 0:00:43]} 37. exf6 {[%emt 0:00:10]} Qxf6 {[%emt 0:00:36]} 38. Qh5+ {[%emt 0:00:26]} Ke7 {[%emt 0:00:18]} 39. Qc5+ {[%emt 0:04:13]} Ke8 {[%emt 0:02:35]} 40. Qb5+ {[%emt 0:00:00]} Bd7 {[%emt 0:00:00]} 41. Re2+ {[%emt 0:00:57]} Kd8 {[%emt 0:00:23]} 42. Qa5+ {[%emt 0:13:26]} b6 {[%emt 0:00:33]} 43. Qg5 {[%emt 0:05:41]} Qxg5 {[%emt 0:05:06]} 44. fxg5 {[%emt 0:00:08]} Rf3 {[%emt 0:00:35]} 45. Rg2 {[%emt 0:00:16]} Rxh3+ {[%emt 0:03:19]} 46. Kg1 {[%emt 0:00:06]} Bc6 {[%emt 0:03:38]} 47. Rg4 {[%emt 0:00:30]} Ke7 {[%emt 0:03:33]} 48. Kf2 {[%emt 0:01:50]} Rh2+ {[%emt 0:00:13]} 49. Ke3 {[%emt 0:00:09]} Rxb2 {[%emt 0:00:16]} 50. Rh4 {[%emt 0:04:29]} Kf8 {[%emt 0:00:45]} 51. Rh7 {[%emt 0:00:38]} a5 {[%emt 0:00:40]} 52. g6 {[%emt 0:00:25]} Rg2 {[%emt 0:02:02]} 53. Rf7+ {[%emt 0:00:11]} Kg8 {[%emt 0:01:04]} 54. Rf6 {[%emt 0:00:29]} Bd5 {[%emt 0:05:12]} 55. Rxb6 {[%emt 0:00:45]} a4 {[%emt 0:00:39]} 56. Kd4 {[%emt 0:04:27]} Bb3 {[%emt 0:00:33]} 57. Kc5 {[%emt 0:02:22]} Rg4 {[%emt 0:02:15]} 58. Ra6 {[%emt 0:02:26]} Kg7 {[%emt 0:00:32]} 59. Rb6 {[%emt 0:01:12]} Rc4+ {[%emt 0:01:02]} 60. Kb5 {[%emt 0:02:18]} a3 {[%emt 0:03:04]} 61. Rb7+ {[%emt 0:00:38]} Kxg6 {[%emt 0:00:10]} 62. Re7 {[%emt 0:00:07]} a2 {[%emt 0:00:54]} 63. Re1 {[%emt 0:00:08]} Ra4 {[%emt 0:00:41]} 64. Ra1 {[%emt 0:00:12]} Kf5 {[%emt 0:00:12]} 65. Kc5 {[%emt 0:01:29]} Ke4 {[%emt 0:01:00]} 66. Kb5 {[%emt 0:00:08]} Kd3 67. c4 {[%emt 0:00:04]} Rxc4 {[%emt 0:00:34]} 68. Rh1 {[%emt 0:00:16]} Kc3 {[%emt 0:00:17]} 69. Rh3+ {[%emt 0:00:52]} Kb2 {[%emt 0:00:12]} 70. Rh2+ {[%emt 0:00:08]} Rc2 {[%emt 0:00:11]} 71. Rxc2+ {[%emt 0:00:07]} Bxc2 {[%emt 0:00:05]} 0-1